[Event "*** SCC Grand Prix: Titled Tuesday Blitz"]
[Site "Chess.com"]
[Date "2020.06.23"]
[Round "1"]
[White "vpsetter"]
[Black "elisak43"]
[Result "1-0"]
[WhiteElo "2622"]
[BlackElo "2306"]
[TimeControl "180+1"]
[EndTime "10:07:41 PDT"]
[Termination "vpsetter won on time"]

1. e4 {[%clk 0:02:59.2]} 1... e5 {[%clk 0:02:59.6]} 2. Nf3 {[%clk 0:02:59.3]}
2... Nc6 {[%clk 0:03:00.2]} 3. Bc4 {[%clk 0:02:59.3]} 3... Nf6 {[%clk
0:03:00.2]} 4. d3 {[%clk 0:02:56.2]} 4... Bc5 {[%clk 0:03:00.2]} 5. O-O {[%clk
0:02:54]} 5... O-O {[%clk 0:02:56.2]} 6. Bg5 {[%clk 0:02:51.1]} 6... h6 {[%clk
0:02:55.2]} 7. Bh4 {[%clk 0:02:50.5]} 7... g5 {[%clk 0:02:55.1]} 8. Bg3 {[%clk
0:02:50.1]} 8... d6 {[%clk 0:02:55.5]} 9. c3 {[%clk 0:02:47.4]} 9... Bg4 {[%clk
0:02:51.4]} 10. a4 {[%clk 0:02:34.3]} 10... a5 {[%clk 0:02:49.9]} 11. h3 {[%clk
0:02:05]} 11... Bh5 {[%clk 0:02:42.9]} 12. Nbd2 {[%clk 0:02:04.5]} 12... Kg7
{[%clk 0:02:31.4]} 13. Qb3 {[%clk 0:02:00]} 13... Bb6 {[%clk 0:02:21.6]} 14. Kh1
{[%clk 0:01:44.3]} 14... Bg6 {[%clk 0:02:14.2]} 15. Bb5 {[%clk 0:01:33.5]} 15...
Nh5 {[%clk 0:02:13.7]} 16. Bh2 {[%clk 0:01:33.1]} 16... Nf4 {[%clk 0:02:13]} 17.
Nc4 {[%clk 0:01:09.1]} 17... Nxd3 {[%clk 0:02:01.4]} 18. Nxb6 {[%clk 0:01:07.1]}
18... Nc5 {[%clk 0:02:01.1]} 19. Qd5 {[%clk 0:00:49.7]} 19... cxb6 {[%clk
0:01:52.5]} 20. Rfe1 {[%clk 0:00:48.6]} 20... Ne7 {[%clk 0:01:37.6]} 21. Qc4
{[%clk 0:00:24.5]} 21... Rc8 {[%clk 0:01:30.6]} 22. Rad1 {[%clk 0:00:19.2]}
22... Nxe4 {[%clk 0:01:27.6]} 23. Qf1 {[%clk 0:00:19.4]} 23... f5 {[%clk
0:01:19.5]} 24. Bxe5+ {[%clk 0:00:18.5]} 24... dxe5 {[%clk 0:01:13.6]} 25. Rxd8
{[%clk 0:00:18.2]} 25... Rfxd8 {[%clk 0:01:14.5]} 26. Nxe5 {[%clk 0:00:18.6]}
26... Nd5 {[%clk 0:01:09.7]} 27. Qe2 {[%clk 0:00:12.8]} 27... Nf4 {[%clk
0:01:03.1]} 28. Qe3 {[%clk 0:00:13.3]} 28... Nd5 {[%clk 0:00:56.1]} 29. Qf3
{[%clk 0:00:10.5]} 29... g4 {[%clk 0:00:50.6]} 30. hxg4 {[%clk 0:00:09.7]} 30...
fxg4 {[%clk 0:00:51.5]} 31. Nxg4 {[%clk 0:00:09.8]} 31... Rf8 {[%clk 0:00:51.4]}
32. Qe2 {[%clk 0:00:08]} 32... h5 {[%clk 0:00:49.5]} 33. Ne5 {[%clk 0:00:04.3]}
33... Rxf2 {[%clk 0:00:47]} 34. Qd3 {[%clk 0:00:04.9]} 34... Ndf6 {[%clk
0:00:34.4]} 35. Nxg6 {[%clk 0:00:05]} 35... Kxg6 {[%clk 0:00:31.6]} 36. Rxe4
{[%clk 0:00:05.6]} 36... Kg7 {[%clk 0:00:26.9]} 37. Re7+ {[%clk 0:00:06.5]} 1-0

[Event "*** SCC Grand Prix: Titled Tuesday Blitz"]
[Site "Chess.com"]
[Date "2020.06.23"]
[Round "1"]
[White "abubakrtagelsir"]
[Black "Evgeny_Ermakov1965"]
[Result "0-1"]
[WhiteElo "2334"]
[BlackElo "2656"]
[TimeControl "180+1"]
[EndTime "10:07:44 PDT"]
[Termination "Evgeny_Ermakov1965 won by checkmate"]

1. e4 {[%clk 0:02:59.7]} 1... c6 {[%clk 0:02:57.1]} 2. d4 {[%clk 0:02:55.6]}
2... d5 {[%clk 0:02:57.2]} 3. Nc3 {[%clk 0:02:55.1]} 3... dxe4 {[%clk
0:02:55.5]} 4. Nxe4 {[%clk 0:02:53.9]} 4... Bf5 {[%clk 0:02:55.3]} 5. Ng3 {[%clk
0:02:52]} 5... Bg6 {[%clk 0:02:55.4]} 6. Nf3 {[%clk 0:02:52.2]} 6... e6 {[%clk
0:02:55.2]} 7. h4 {[%clk 0:02:49.1]} 7... h5 {[%clk 0:02:54.4]} 8. Ne5 {[%clk
0:02:36.7]} 8... Ne7 {[%clk 0:02:52.6]} 9. Nxg6 {[%clk 0:02:33.2]} 9... Nxg6
{[%clk 0:02:52.4]} 10. Bg5 {[%clk 0:02:31.7]} 10... Be7 {[%clk 0:02:49.9]} 11.
Qd2 {[%clk 0:02:27.7]} 11... Bxg5 {[%clk 0:02:46.5]} 12. Qxg5 {[%clk 0:02:26.6]}
12... Qxg5 {[%clk 0:02:45.5]} 13. hxg5 {[%clk 0:02:26.1]} 13... h4 {[%clk
0:02:44.9]} 14. Ne4 {[%clk 0:02:25.6]} 14... Ke7 {[%clk 0:02:42.2]} 15. O-O-O
{[%clk 0:02:24.8]} 15... Nd7 {[%clk 0:02:39.9]} 16. Be2 {[%clk 0:02:18.2]} 16...
Nb6 {[%clk 0:02:33.3]} 17. Nc5 {[%clk 0:02:17.3]} 17... Rab8 {[%clk 0:02:32.9]}
18. Bd3 {[%clk 0:02:10.6]} 18... Nf4 {[%clk 0:02:29.9]} 19. Be4 {[%clk
0:02:10.5]} 19... Nbd5 {[%clk 0:02:26.7]} 20. Bxd5 {[%clk 0:01:58.4]} 20... cxd5
{[%clk 0:02:21.7]} 21. Kb1 {[%clk 0:01:46.8]} 21... Nxg2 {[%clk 0:02:18.1]} 22.
Rh2 {[%clk 0:01:46.3]} 22... Nf4 {[%clk 0:02:17.8]} 23. Rdh1 {[%clk 0:01:45.5]}
23... h3 {[%clk 0:02:15.6]} 24. Nd3 {[%clk 0:01:44.4]} 24... Nxd3 {[%clk
0:02:14.1]} 25. cxd3 {[%clk 0:01:44]} 25... Rh5 {[%clk 0:02:15]} 26. f4 {[%clk
0:01:40]} 26... Rbh8 {[%clk 0:02:14.4]} 27. Kc2 {[%clk 0:01:36.4]} 27... Rh4
{[%clk 0:02:14.3]} 28. Rf1 {[%clk 0:01:36.6]} 28... Rg4 {[%clk 0:02:13.7]} 29.
Rff2 {[%clk 0:01:34.2]} 29... Rg3 {[%clk 0:02:11.6]} 30. Kd2 {[%clk 0:01:30.8]}
30... f6 {[%clk 0:02:08.8]} 31. gxf6+ {[%clk 0:01:26.9]} 31... Kxf6 {[%clk
0:02:09.4]} 32. Ke2 {[%clk 0:01:22.5]} 32... Rh4 {[%clk 0:02:08.7]} 33. Rf3
{[%clk 0:01:17.2]} 33... Rxf3 {[%clk 0:02:07.4]} 34. Kxf3 {[%clk 0:01:16.9]}
34... Kf5 {[%clk 0:02:08.3]} 35. Kg3 {[%clk 0:01:16.5]} 35... Rxf4 {[%clk
0:02:05.6]} 36. Rxh3 {[%clk 0:01:10]} 36... Rxd4 {[%clk 0:02:05.5]} 37. Kf2
{[%clk 0:01:10.3]} 37... g5 {[%clk 0:02:01.3]} 38. Ke3 {[%clk 0:01:09.3]} 38...
Rh4 {[%clk 0:01:58.1]} 39. Rf3+ {[%clk 0:01:08.6]} 39... Rf4 {[%clk 0:01:57.7]}
40. Rh3 {[%clk 0:01:08.3]} 40... d4+ {[%clk 0:01:57.6]} 41. Ke2 {[%clk
0:01:08.1]} 41... Rh4 {[%clk 0:01:56.8]} 42. Rf3+ {[%clk 0:01:07.9]} 42... Kg6
{[%clk 0:01:56]} 43. Rf8 {[%clk 0:00:55]} 43... Rh2+ {[%clk 0:01:55.4]} 44. Kf3
{[%clk 0:00:54.7]} 44... Rxb2 {[%clk 0:01:53.9]} 45. a4 {[%clk 0:00:53.3]} 45...
a6 {[%clk 0:01:49.5]} 46. Ke4 {[%clk 0:00:52.3]} 46... b5 {[%clk 0:01:44.7]} 47.
axb5 {[%clk 0:00:51.3]} 47... Rxb5 {[%clk 0:01:43.5]} 48. Kxd4 {[%clk
0:00:50.4]} 48... g4 {[%clk 0:01:41.7]} 49. Ke4 {[%clk 0:00:44.3]} 49... Rb4+
{[%clk 0:01:36.2]} 50. d4 {[%clk 0:00:43.5]} 50... a5 {[%clk 0:01:34.2]} 51. Ke5
{[%clk 0:00:40.4]} 51... a4 {[%clk 0:01:31.5]} 52. Ra8 {[%clk 0:00:25]} 52...
Kg5 {[%clk 0:01:27.9]} 53. Ke4 {[%clk 0:00:12.5]} 53... g3 {[%clk 0:01:23.7]}
54. Kf3 {[%clk 0:00:11.1]} 54... Rb3+ {[%clk 0:01:24]} 55. Kg2 {[%clk
0:00:11.1]} 55... a3 {[%clk 0:01:23.8]} 56. Ra6 {[%clk 0:00:08.1]} 56... Kf4
{[%clk 0:01:20.1]} 57. Rxe6 {[%clk 0:00:05.8]} 57... Rb2+ {[%clk 0:01:19.7]} 58.
Kh3 {[%clk 0:00:06.2]} 58... Rh2# {[%clk 0:01:18.3]} 0-1

[Event "*** SCC Grand Prix: Titled Tuesday Blitz"]
[Site "Chess.com"]
[Date "2020.06.23"]
[Round "1"]
[White "XDPS"]
[Black "Sueetin"]
[Result "1-0"]
[WhiteElo "2683"]
[BlackElo "2348"]
[TimeControl "180+1"]
[EndTime "10:07:48 PDT"]
[Termination "XDPS won by checkmate"]

1. d4 {[%clk 0:02:57.7]} 1... Nf6 {[%clk 0:02:59.5]} 2. Bf4 {[%clk 0:02:51.8]}
2... d5 {[%clk 0:02:58.7]} 3. e3 {[%clk 0:02:50.1]} 3... c5 {[%clk 0:02:58.4]}
4. Nf3 {[%clk 0:02:47.7]} 4... Nc6 {[%clk 0:02:57.9]} 5. Nbd2 {[%clk 0:02:46]}
5... cxd4 {[%clk 0:02:51.2]} 6. exd4 {[%clk 0:02:43.5]} 6... Qb6 {[%clk
0:02:51.5]} 7. Nb3 {[%clk 0:02:34.8]} 7... Bf5 {[%clk 0:02:48.8]} 8. c3 {[%clk
0:02:27.7]} 8... e6 {[%clk 0:02:44.2]} 9. Be2 {[%clk 0:02:23.7]} 9... Be7 {[%clk
0:02:42.4]} 10. O-O {[%clk 0:02:20.8]} 10... h6 {[%clk 0:02:39]} 11. a4 {[%clk
0:02:18.6]} 11... a5 {[%clk 0:02:34.7]} 12. Re1 {[%clk 0:02:15.4]} 12... O-O
{[%clk 0:02:33.7]} 13. Ne5 {[%clk 0:02:12.8]} 13... Nxe5 {[%clk 0:02:27.9]} 14.
Bxe5 {[%clk 0:02:12]} 14... Ne8 {[%clk 0:02:05.7]} 15. Bf1 {[%clk 0:01:48.1]}
15... Nd6 {[%clk 0:02:04.2]} 16. Bf4 {[%clk 0:01:34.5]} 16... Nc4 {[%clk
0:01:58]} 17. Bc1 {[%clk 0:01:34.1]} 17... Qc7 {[%clk 0:01:18]} 18. Nd2 {[%clk
0:01:31.8]} 18... Nxd2 {[%clk 0:01:07.7]} 19. Bxd2 {[%clk 0:01:32.7]} 19... Bd6
{[%clk 0:01:02.5]} 20. g3 {[%clk 0:01:30.6]} 20... Qb6 {[%clk 0:00:56.3]} 21.
Bb5 {[%clk 0:01:29.7]} 21... Rad8 {[%clk 0:00:38.9]} 22. Qf3 {[%clk 0:01:28.7]}
22... Be4 {[%clk 0:00:37.7]} 23. Qe2 {[%clk 0:01:28.4]} 23... Kh8 {[%clk
0:00:34.9]} 24. Be3 {[%clk 0:01:19.5]} 24... Bh7 {[%clk 0:00:31.7]} 25. Qd2
{[%clk 0:01:19.3]} 25... f6 {[%clk 0:00:21.7]} 26. Re2 {[%clk 0:00:48.1]} 26...
Qc7 {[%clk 0:00:14]} 27. Rae1 {[%clk 0:00:30.5]} 27... Be4 {[%clk 0:00:13.8]}
28. f4 {[%clk 0:00:18.5]} 28... e5 {[%clk 0:00:11.5]} 29. fxe5 {[%clk 0:00:18]}
29... fxe5 {[%clk 0:00:12.4]} 30. dxe5 {[%clk 0:00:17.9]} 30... Bxe5 {[%clk
0:00:12.5]} 31. Rf2 {[%clk 0:00:12.3]} 31... Bxg3 {[%clk 0:00:12.5]} 32. Rxf8+
{[%clk 0:00:11.2]} 32... Rxf8 {[%clk 0:00:13.4]} 33. Rf1 {[%clk 0:00:09]} 33...
Rxf1+ {[%clk 0:00:06.7]} 34. Kxf1 {[%clk 0:00:08.8]} 34... Bxh2 {[%clk
0:00:06.2]} 35. Qf2 {[%clk 0:00:08.3]} 35... Bd6 {[%clk 0:00:04.9]} 36. Bd4
{[%clk 0:00:07.9]} 36... Qe7 {[%clk 0:00:04.5]} 37. Qg1 {[%clk 0:00:05.4]} 37...
Kh7 {[%clk 0:00:03.8]} 38. Be2 {[%clk 0:00:04.2]} 38... Qf7+ {[%clk 0:00:03.9]}
39. Ke1 {[%clk 0:00:04.4]} 39... Bf4 {[%clk 0:00:03.8]} 40. Qg4 {[%clk
0:00:04.4]} 40... Bg5 {[%clk 0:00:03.7]} 41. Qc8 {[%clk 0:00:03.5]} 41... Bg6
{[%clk 0:00:03]} 42. Qg4 {[%clk 0:00:03.3]} 42... Bf5 {[%clk 0:00:01.9]} 43. Qg3
{[%clk 0:00:03.4]} 43... Qe6 {[%clk 0:00:01.8]} 44. Qc7 {[%clk 0:00:03.4]} 44...
Bd3 {[%clk 0:00:01.8]} 45. Qxg7# {[%clk 0:00:03.5]} 1-0

[Event "*** SCC Grand Prix: Titled Tuesday Blitz"]
[Site "Chess.com"]
[Date "2020.06.23"]
[Round "1"]
[White "JoachimMouhamad"]
[Black "Boudicca64"]
[Result "1/2-1/2"]
[WhiteElo "2462"]
[BlackElo "1794"]
[TimeControl "180+1"]
[EndTime "10:07:53 PDT"]
[Termination "Game drawn by stalemate"]

1. e4 {[%clk 0:02:56]} 1... c5 {[%clk 0:02:57.2]} 2. Nf3 {[%clk 0:02:54.8]} 2...
e6 {[%clk 0:02:54.1]} 3. d4 {[%clk 0:02:54.7]} 3... cxd4 {[%clk 0:02:53.8]} 4.
Nxd4 {[%clk 0:02:55.6]} 4... a6 {[%clk 0:02:53.6]} 5. Bd3 {[%clk 0:02:52.6]}
5... g6 {[%clk 0:02:53.7]} 6. O-O {[%clk 0:02:44.2]} 6... Bg7 {[%clk 0:02:52.7]}
7. Be3 {[%clk 0:02:37.1]} 7... Nc6 {[%clk 0:02:50.7]} 8. Nxc6 {[%clk 0:02:33.3]}
8... bxc6 {[%clk 0:02:49.3]} 9. Nd2 {[%clk 0:02:20.8]} 9... Ne7 {[%clk
0:02:47.7]} 10. Nc4 {[%clk 0:01:51.4]} 10... d5 {[%clk 0:02:42.7]} 11. Nb6
{[%clk 0:01:43.1]} 11... Rb8 {[%clk 0:02:40.9]} 12. Nxc8 {[%clk 0:01:39.9]}
12... Qxc8 {[%clk 0:02:39.8]} 13. c4 {[%clk 0:01:24.8]} 13... O-O {[%clk
0:02:28.8]} 14. cxd5 {[%clk 0:01:19.7]} 14... cxd5 {[%clk 0:02:24.9]} 15. Rc1
{[%clk 0:01:18.1]} 15... Qb7 {[%clk 0:02:20.3]} 16. exd5 {[%clk 0:00:47]} 16...
Nxd5 {[%clk 0:02:17.8]} 17. Bc5 {[%clk 0:00:46.7]} 17... Rfd8 {[%clk 0:02:14]}
18. Qa4 {[%clk 0:00:32.8]} 18... f5 {[%clk 0:01:33]} 19. Qxa6 {[%clk 0:00:28.5]}
19... Qxb2 {[%clk 0:01:21.3]} 20. Qxe6+ {[%clk 0:00:27.5]} 20... Kh8 {[%clk
0:01:19.4]} 21. Rb1 {[%clk 0:00:19.2]} 21... Nf4 {[%clk 0:01:11.6]} 22. Rxb2
{[%clk 0:00:18.1]} 22... Nxe6 {[%clk 0:01:10.3]} 23. Rxb8 {[%clk 0:00:18.1]}
23... Rxb8 {[%clk 0:01:08.4]} 24. Bd6 {[%clk 0:00:18.6]} 24... Rd8 {[%clk
0:01:05.8]} 25. Bc4 {[%clk 0:00:12]} 25... Rxd6 {[%clk 0:01:04.1]} 26. Re1
{[%clk 0:00:12]} 26... Nc7 {[%clk 0:00:50.9]} 27. Bb3 {[%clk 0:00:09.7]} 27...
h5 {[%clk 0:00:47.7]} 28. g3 {[%clk 0:00:09.9]} 28... Kh7 {[%clk 0:00:46.4]} 29.
h4 {[%clk 0:00:10.1]} 29... Bf6 {[%clk 0:00:37.1]} 30. Rc1 {[%clk 0:00:08.3]}
30... Ne6 {[%clk 0:00:32.6]} 31. Rc8 {[%clk 0:00:06.3]} 31... Nd4 {[%clk
0:00:29.8]} 32. Bg8+ {[%clk 0:00:05.1]} 32... Kg7 {[%clk 0:00:27.8]} 33. Kg2
{[%clk 0:00:01.9]} 33... Rc6 {[%clk 0:00:23.9]} 34. Rxc6 {[%clk 0:00:01.4]}
34... Nxc6 {[%clk 0:00:22.5]} 35. Bd5 {[%clk 0:00:02.3]} 35... Nd4 {[%clk
0:00:21.4]} 36. Bc4 {[%clk 0:00:02.2]} 36... Kf8 {[%clk 0:00:20.9]} 37. Kf1
{[%clk 0:00:02.3]} 37... Ke7 {[%clk 0:00:20.9]} 38. Bb3 {[%clk 0:00:01.4]} 38...
Nxb3 {[%clk 0:00:19.3]} 39. axb3 {[%clk 0:00:02.3]} 39... Bc3 {[%clk 0:00:18.7]}
40. Ke2 {[%clk 0:00:03.2]} 40... Kd6 {[%clk 0:00:18.1]} 41. f3 {[%clk
0:00:03.1]} 41... Kd5 {[%clk 0:00:17]} 42. g4 {[%clk 0:00:03.3]} 42... fxg4
{[%clk 0:00:15.8]} 43. fxg4 {[%clk 0:00:04.2]} 43... Bf6 {[%clk 0:00:14.4]} 44.
gxh5 {[%clk 0:00:03.6]} 44... gxh5 {[%clk 0:00:13.4]} 45. Kf3 {[%clk 0:00:03.1]}
45... Ke5 {[%clk 0:00:11.7]} 46. Kg2 {[%clk 0:00:04]} 46... Kf4 {[%clk
0:00:11.3]} 47. Kh1 {[%clk 0:00:04.9]} 47... Kg4 {[%clk 0:00:11.1]} 48. Kg1
{[%clk 0:00:05.8]} 48... Kxh4 {[%clk 0:00:10.9]} 49. b4 {[%clk 0:00:06.1]} 49...
Kg3 {[%clk 0:00:10.8]} 50. b5 {[%clk 0:00:07]} 50... Bd4+ {[%clk 0:00:10.3]} 51.
Kh1 {[%clk 0:00:07.9]} 51... h4 {[%clk 0:00:09.7]} 52. b6 {[%clk 0:00:07.9]}
52... Bxb6 {[%clk 0:00:09.1]} 1/2-1/2

[Event "*** SCC Grand Prix: Titled Tuesday Blitz"]
[Site "Chess.com"]
[Date "2020.06.23"]
[Round "1"]
[White "Sam_ChessMood"]
[Black "djano"]
[Result "0-1"]
[WhiteElo "2811"]
[BlackElo "2433"]
[TimeControl "180+1"]
[EndTime "10:07:54 PDT"]
[Termination "djano won by resignation"]

1. e4 {[%clk 0:02:58.2]} 1... e5 {[%clk 0:02:59]} 2. Nf3 {[%clk 0:02:58.2]} 2...
Nc6 {[%clk 0:02:58.3]} 3. Bb5 {[%clk 0:02:58.1]} 3... a6 {[%clk 0:02:58.6]} 4.
Ba4 {[%clk 0:02:58.5]} 4... d6 {[%clk 0:02:59]} 5. O-O {[%clk 0:02:56.7]} 5...
Nf6 {[%clk 0:02:54.2]} 6. Re1 {[%clk 0:02:51.7]} 6... Bd7 {[%clk 0:02:50.5]} 7.
c3 {[%clk 0:02:50]} 7... g6 {[%clk 0:02:45.3]} 8. d4 {[%clk 0:02:49.7]} 8... b5
{[%clk 0:02:43.7]} 9. Bc2 {[%clk 0:02:40.5]} 9... Bg7 {[%clk 0:02:43.6]} 10. h3
{[%clk 0:02:30.4]} 10... O-O {[%clk 0:02:42.9]} 11. Be3 {[%clk 0:02:30.6]} 11...
Re8 {[%clk 0:02:35.2]} 12. Nbd2 {[%clk 0:02:30.7]} 12... Nh5 {[%clk 0:02:20.9]}
13. dxe5 {[%clk 0:02:00.6]} 13... Nxe5 {[%clk 0:02:18.6]} 14. Nxe5 {[%clk
0:01:58.8]} 14... dxe5 {[%clk 0:02:16]} 15. Nb3 {[%clk 0:01:53.4]} 15... Nf4
{[%clk 0:01:48.6]} 16. Nc5 {[%clk 0:01:47.2]} 16... Bc6 {[%clk 0:01:49]} 17.
Qxd8 {[%clk 0:01:36.3]} 17... Rexd8 {[%clk 0:01:49.9]} 18. a4 {[%clk 0:01:23.9]}
18... Bf8 {[%clk 0:01:34.8]} 19. Red1 {[%clk 0:01:17.5]} 19... Bd6 {[%clk
0:01:21.6]} 20. b4 {[%clk 0:01:07.4]} 20... Ne2+ {[%clk 0:01:17.3]} 21. Kf1
{[%clk 0:01:00.8]} 21... Nxc3 {[%clk 0:01:17.1]} 22. Re1 {[%clk 0:00:29.7]}
22... Bxc5 {[%clk 0:01:00.8]} 23. Bxc5 {[%clk 0:00:30.6]} 23... Rd2 {[%clk
0:00:54.8]} 24. Bd1 {[%clk 0:00:14.9]} 24... bxa4 {[%clk 0:00:52.5]} 25. Bf3
{[%clk 0:00:13.2]} 25... Rad8 {[%clk 0:00:46.3]} 26. Re3 {[%clk 0:00:12.4]}
26... Nb5 {[%clk 0:00:41]} 27. Rxa4 {[%clk 0:00:11]} 27... Nd4 {[%clk
0:00:35.2]} 28. Ra5 {[%clk 0:00:08]} 28... Bb5+ {[%clk 0:00:31.8]} 29. Kg1
{[%clk 0:00:07]} 29... Nxf3+ {[%clk 0:00:28.1]} 30. gxf3 {[%clk 0:00:07.5]}
30... Rd1+ {[%clk 0:00:25.2]} 31. Kg2 {[%clk 0:00:07.9]} 31... R8d2 {[%clk
0:00:19.1]} 32. Rea3 {[%clk 0:00:07.1]} 32... f6 {[%clk 0:00:16]} 33. Ra1 {[%clk
0:00:05.3]} 33... Kf7 {[%clk 0:00:13.8]} 34. R5a3 {[%clk 0:00:04.5]} 34... Ke6
{[%clk 0:00:12.9]} 35. Be3 {[%clk 0:00:04.6]} 35... Rd3 {[%clk 0:00:12.4]} 36.
Rxd3 {[%clk 0:00:04.3]} 36... Rxd3 {[%clk 0:00:12.1]} 37. Rc1 {[%clk 0:00:04.4]}
37... c6 {[%clk 0:00:11.7]} 38. Bc5 {[%clk 0:00:04.8]} 38... f5 {[%clk 0:00:12]}
39. h4 {[%clk 0:00:04.6]} 39... h5 {[%clk 0:00:11.2]} 40. Re1 {[%clk 0:00:03.6]}
40... f4 {[%clk 0:00:10.3]} 41. Rc1 {[%clk 0:00:03.8]} 41... Ba4 {[%clk
0:00:10.1]} 42. Ra1 {[%clk 0:00:04]} 42... Bd1 {[%clk 0:00:08.9]} 43. Rxa6
{[%clk 0:00:03.9]} 43... Bxf3+ {[%clk 0:00:09.1]} 44. Kh2 {[%clk 0:00:04.4]}
44... Bxe4 {[%clk 0:00:10]} 45. Ra7 {[%clk 0:00:04.6]} 45... Rd1 {[%clk
0:00:09.4]} 46. Re7+ {[%clk 0:00:04.7]} 46... Kf5 {[%clk 0:00:09.7]} 47. Rf7+
{[%clk 0:00:05.1]} 47... Kg4 {[%clk 0:00:10]} 48. f3+ {[%clk 0:00:04.9]} 48...
Bxf3 {[%clk 0:00:10.3]} 49. Bg1 {[%clk 0:00:04.5]} 49... Rd2+ {[%clk 0:00:10.1]}
0-1

[Event "*** SCC Grand Prix: Titled Tuesday Blitz"]
[Site "Chess.com"]
[Date "2020.06.23"]
[Round "1"]
[White "MVM2008"]
[Black "boasovietica"]
[Result "0-1"]
[WhiteElo "1908"]
[BlackElo "2477"]
[TimeControl "180+1"]
[EndTime "10:07:55 PDT"]
[Termination "boasovietica won by resignation"]

1. d4 {[%clk 0:02:59.2]} 1... Nf6 {[%clk 0:02:59.3]} 2. Nf3 {[%clk 0:02:56.9]}
2... g6 {[%clk 0:02:58.7]} 3. g3 {[%clk 0:02:53.7]} 3... Bg7 {[%clk 0:02:58.3]}
4. Bg2 {[%clk 0:02:53.8]} 4... O-O {[%clk 0:02:58.6]} 5. O-O {[%clk 0:02:53.9]}
5... d6 {[%clk 0:02:58.9]} 6. c4 {[%clk 0:02:53.4]} 6... Nc6 {[%clk 0:02:58.9]}
7. Nc3 {[%clk 0:02:52.1]} 7... Bg4 {[%clk 0:02:58.7]} 8. h3 {[%clk 0:02:48.7]}
8... Bxf3 {[%clk 0:02:58.2]} 9. Bxf3 {[%clk 0:02:47.3]} 9... e5 {[%clk
0:02:58.5]} 10. dxe5 {[%clk 0:02:43.2]} 10... dxe5 {[%clk 0:02:54.6]} 11. Qxd8
{[%clk 0:02:32.3]} 11... Raxd8 {[%clk 0:02:50.5]} 12. Bg5 {[%clk 0:02:22.8]}
12... Rd7 {[%clk 0:02:21.2]} 13. Rad1 {[%clk 0:02:18.8]} 13... Rxd1 {[%clk
0:02:03]} 14. Rxd1 {[%clk 0:02:16.3]} 14... Nd4 {[%clk 0:01:40.2]} 15. Bg2
{[%clk 0:01:35.5]} 15... c6 {[%clk 0:01:33.1]} 16. e3 {[%clk 0:01:26.1]} 16...
Ne6 {[%clk 0:01:32.6]} 17. Bxf6 {[%clk 0:01:25.2]} 17... Bxf6 {[%clk 0:01:33.5]}
18. Rd7 {[%clk 0:01:23.3]} 18... Nc5 {[%clk 0:01:29.7]} 19. Rd1 {[%clk
0:01:07.5]} 19... Rd8 {[%clk 0:01:28.5]} 20. Rxd8+ {[%clk 0:01:04.7]} 20... Bxd8
{[%clk 0:01:29.4]} 21. Ne4 {[%clk 0:00:59.8]} 21... Nd3 {[%clk 0:01:20.2]} 22.
b3 {[%clk 0:00:48.6]} 22... Be7 {[%clk 0:01:12.6]} 23. f4 {[%clk 0:00:36.9]}
23... exf4 {[%clk 0:01:02.6]} 24. exf4 {[%clk 0:00:34.8]} 24... Nc1 {[%clk
0:01:01.7]} 25. Nc3 {[%clk 0:00:18.5]} 25... Bf6 {[%clk 0:00:46.8]} 26. Ne4
{[%clk 0:00:18]} 26... Bd4+ {[%clk 0:00:46.7]} 27. Kf1 {[%clk 0:00:17.9]} 27...
Nxa2 {[%clk 0:00:45.9]} 28. Ke2 {[%clk 0:00:16.8]} 28... Nc1+ {[%clk 0:00:43.5]}
29. Kd2 {[%clk 0:00:17.2]} 29... Nxb3+ {[%clk 0:00:41.5]} 30. Kd3 {[%clk
0:00:17.7]} 30... Bb6 {[%clk 0:00:33]} 31. Nf6+ {[%clk 0:00:15.9]} 31... Kg7
{[%clk 0:00:32.1]} 32. Ne8+ {[%clk 0:00:15.8]} 32... Kf8 {[%clk 0:00:30.9]} 33.
Nd6 {[%clk 0:00:16.1]} 33... Nc5+ {[%clk 0:00:30.5]} 34. Kc3 {[%clk 0:00:16.1]}
34... Ke7 {[%clk 0:00:29.9]} 35. Ne4 {[%clk 0:00:15.4]} 35... Nxe4+ {[%clk
0:00:29.2]} 36. Bxe4 {[%clk 0:00:16.3]} 36... f5 {[%clk 0:00:28.9]} 37. Bf3
{[%clk 0:00:16.3]} 37... Bf2 {[%clk 0:00:28.2]} 38. g4 {[%clk 0:00:16.3]} 38...
Be3 {[%clk 0:00:27.7]} 39. gxf5 {[%clk 0:00:15.1]} 39... gxf5 {[%clk 0:00:28.6]}
40. Kb4 {[%clk 0:00:12.7]} 40... Bxf4 {[%clk 0:00:27.3]} 41. Kc5 {[%clk
0:00:13.6]} 41... Bd6+ {[%clk 0:00:26.7]} 42. Kd4 {[%clk 0:00:13.6]} 42... Kf6
{[%clk 0:00:25.2]} 43. Kd3 {[%clk 0:00:11.7]} 43... Be5 {[%clk 0:00:24.4]} 44.
Ke3 {[%clk 0:00:11.6]} 44... Ke6 {[%clk 0:00:24.2]} 45. Kd3 {[%clk 0:00:11.5]}
45... Kd6 {[%clk 0:00:23.8]} 46. Ke3 {[%clk 0:00:11.5]} 46... Kc5 {[%clk
0:00:23.2]} 47. Kd3 {[%clk 0:00:12.4]} 47... a5 {[%clk 0:00:23.4]} 48. Be2
{[%clk 0:00:11.9]} 48... b5 {[%clk 0:00:23.3]} 49. cxb5 {[%clk 0:00:12.1]} 49...
cxb5 {[%clk 0:00:23.4]} 50. Kc2 {[%clk 0:00:12.8]} 50... a4 {[%clk 0:00:21.7]}
51. Bd3 {[%clk 0:00:13.3]} 51... f4 {[%clk 0:00:18.8]} 52. Bxh7 {[%clk
0:00:13.5]} 52... b4 {[%clk 0:00:19]} 53. Be4 {[%clk 0:00:13.3]} 53... Kd4
{[%clk 0:00:18.5]} 54. Bc6 {[%clk 0:00:10.9]} 54... b3+ {[%clk 0:00:17.8]} 55.
Kb2 {[%clk 0:00:10.8]} 55... Kc5+ {[%clk 0:00:17.8]} 56. Ka3 {[%clk 0:00:11.4]}
56... Kxc6 {[%clk 0:00:18.2]} 0-1